Workbook

Sheet Comparative Taxable Income
B3: Comparative Taxable Income
B4: For the years 2006 - 2009
B6: Income | F6: 2006 | G6: =IF(SUM(F6),SUM(F6)+1,"") -> 2007 | H6: =IF(SUM(G6),SUM(G6)+1,"") -> 2008 | I6: =IF(SUM(H6),SUM(H6)+1,"") -> 2009
C7: Wages and salaries | F7: $100,000 | G7: $110,000 | H7: $120,000 | I7: $125,000
C8: Dividends and Interest | F8: $1,000 | G8: $1,000 | H8: $1,200 | I8: $1,300
C9: Taxable refunds | F9: $500 | G9: $600 | H9: $700 | I9: $800
C10: Alimony received
C11: Net business income (Loss) | F11: $11,000 | G11: $12,000 | H11: $13,000 | I11: $14,000
C12: Net capital gain (Loss) | F12: $2,000 | G12: $3,000 | H12: $4,000 | I12: $5,000
C13: Net rent income (Loss)
C14: Net partnership income (Allowable Loss)
C15: Other income (Loss)
C16: Total Income | F16: =IF(SUM(F7:F15),SUM(F7:F15),"") -> $114,500 | G16: =IF(SUM(G7:G15),SUM(G7:G15),"") -> $126,600 | H16: =IF(SUM(H7:H15),SUM(H7:H15),"") -> $138,900 | I16: =IF(SUM(I7:I15),SUM(I7:I15),"") -> $146,100
B18: Adjustments to gross income
C19: IRA deduction | F19: $2,000
C20: Spouse's IRA deductions | F20: $2,000
C21: Moving expenses
C22: 1/2 of Self-employment tax | F22: $900 | G22: $1,000 | H22: $1,200 | I22: $1,400
C23: Self-employed health insurance
C24: Keogh plan payments
C25: SEP contribution | F25: $1,000 | G25: $1,100 | H25: $1,200 | I25: $1,300
C26: Alimony paid
C27: Other adjustments
C28: Total Adjustments | F28: =IF(SUM(F19:F27),SUM(F19:F27),"") -> $5,900 | G28: =IF(SUM(G19:G27),SUM(G19:G27),"") -> $2,100 | H28: =IF(SUM(H19:H27),SUM(H19:H27),"") -> $2,400 | I28: =IF(SUM(I19:I27),SUM(I19:I27),"") -> $2,700
B30: Adjusted gross income | F30: =IF(SUM(F28,F16),F16-F28,"") -> $108,600 | G30: =IF(SUM(G28,G16),G16-G28,"") -> $124,500 | H30: =IF(SUM(H28,H16),H16-H28,"") -> $136,500 | I30: =IF(SUM(I28,I16),I16-I28,"") -> $143,400
B32: Itemized deductions
C33: Medical | F33: $500 | G33: $500 | H33: $500 | I33: $500
C34: Income taxes | F34: $5,000 | G34: $5,100 | H34: $5,200 | I34: $5,300
C35: Property taxes | F35: $2,000 | G35: $2,000 | H35: $2,000 | I35: $2,000
C36: Mortgage Interest Paid | F36: $2,500 | G36: $2,500 | H36: $2,500 | I36: $2,500
C37: Charitable Contributions | F37: $500 | G37: $500 | H37: $500 | I37: $500
C38: Casualty and Theft Losses
C39: Unreimbursed Moving Expenses
C40: Unreimbursed Employee Business Expenses | F40: $500 | G40: $500 | H40: $500 | I40: $500
C41: Miscellaneous Deductions
C42: Total Itemized Deductions | F42: =IF(SUM(F34:F41),SUM(F34:F41),"") -> $10,500 | G42: =IF(SUM(G34:G41),SUM(G34:G41),"") -> $10,600 | H42: =IF(SUM(H34:H41),SUM(H34:H41),"") -> $10,700 | I42: =IF(SUM(I34:I41),SUM(I34:I41),"") -> $10,800
C43: Allowable Exemptions | F43: $7,800 | G43: $8,200 | H43: $8,400 | I43: $9,000
C44: Total Deductions and Exemptions | F44: =IF(SUM(F42:F43),SUM(F42:F43),"") -> $18,300 | G44: =IF(SUM(G42:G43),SUM(G42:G43),"") -> $18,800 | H44: =IF(SUM(H42:H43),SUM(H42:H43),"") -> $19,100 | I44: =IF(SUM(I42:I43),SUM(I42:I43),"") -> $19,800
B46: Taxable Income | F46: =IF(SUM(F16,F30,F42),F30-F44,"") -> $90,300 | G46: =IF(SUM(G16,G30,G42),G30-G44,"") -> $105,700 | H46: =IF(SUM(H16,H30,H42),H30-H44,"") -> $117,400 | I46: =IF(SUM(I16,I30,I42),I30-I44,"") -> $123,600
